bitfinex-derivatives/quotes_BTCF0:USTF0_20251129
["timestamp","ask_amount","ask_price","bid_price","bid_amount"]
[1764419760119,0.02042,90649.0,90648.0,0.01183683]
[1764419760325,0.031451,90640.0,90639.0,0.0583655]
[1764419760526,0.41724372,90640.0,90639.0,0.0583655]
[1764419760834,0.41724372,90640.0,90639.0,0.07204511]
[1764419761834,0.41724372,90640.0,90639.0,0.07404511]
[1764419764325,0.391451,90640.0,90639.0,0.07404511]
[1764419767729,0.38042,90640.0,90639.0,0.07404511]
[1764419767932,0.38042,90640.0,90639.0,0.07304511]
[1764419778352,0.38042,90640.0,90639.0,0.01484511]
[1764419778557,0.74122,90640.0,90639.0,0.01484511]
[1764419778758,0.76681582,90640.0,90639.0,0.01484511]
[1764419780452,0.76681582,90640.0,90639.0,0.01384511]
[1764419780653,0.76881582,90640.0,90639.0,0.01384511]
[1764419781360,1.16981582,90640.0,90639.0,0.01384511]
[1764419782252,0.02042,90627.0,90626.0,0.02318]
[1764419782454,0.43042,90627.0,90626.0,0.02318]
[1764419783454,0.02042,90625.0,90624.0,0.0582]
[1764419783760,0.40042,90625.0,90624.0,0.0582]
[1764419784345,0.40042,90625.0,90624.0,0.02318]
[1764419784556,0.40042,90625.0,90617.0,0.0449255]
[1764419784557,0.02042,90618.0,90617.0,0.0449255]
[1764419784755,0.37042,90618.0,90617.0,0.05828005]
[1764419785159,0.3814536,90618.0,90617.0,0.05828005]
[1764419788857,0.3814536,90618.0,90617.0,0.01352005]
[1764419789358,0.0314546,90610.0,90609.0,0.05715]
[1764419789657,0.3814546,90610.0,90609.0,0.07033896]
[1764419791958,0.3814546,90610.0,90609.0,0.01318896]
[1764419792267,0.031455,90607.0,90606.0,0.00027592]
[1764419792465,0.421455,90607.0,90606.0,0.02148592]
[1764419793556,0.421455,90607.0,90606.0,0.00027592]
[1764419794367,0.422455,90607.0,90606.0,0.00027592]
[1764419794659,0.422455,90607.0,90606.0,0.01348596]
[1764419794866,0.422455,90607.0,90606.0,0.03469596]
[1764419795360,0.422455,90607.0,90606.0,0.05707596]
[1764419797265,0.783255,90607.0,90606.0,0.05707596]
[1764419798861,0.784255,90607.0,90606.0,0.05707596]
[1764419801667,0.784255,90607.0,90606.0,0.06973596]
[1764419803167,0.783255,90607.0,90606.0,0.06973596]
[1764419804060,0.784255,90607.0,90606.0,0.06973596]
[1764419805068,0.783255,90607.0,90606.0,0.06973596]
[1764419805465,0.784255,90607.0,90606.0,0.06973596]
[1764419813072,0.783255,90607.0,90606.0,0.06973596]
[1764419813263,0.784255,90607.0,90606.0,0.06973596]
[1764419814371,0.80975141,90607.0,90606.0,0.06973596]
[1764419814874,0.80875141,90607.0,90606.0,0.06973596]
[1764419821678,0.02649641,90607.0,90606.0,0.08077106]
[1764419821974,0.0001655,90616.0,90615.0,0.056824]
[1764419822178,0.0225855,90616.0,90615.0,0.04579]
[1764419822475,0.4225855,90616.0,90615.0,0.04579]
[1764419824077,0.4336194,90616.0,90615.0,0.04779]
[1764419825067,0.4336194,90616.0,90615.0,0.04579]
[1764419825374,0.4336194,90616.0,90615.0,0.04679]
[1764419825782,0.4225855,90616.0,90615.0,0.04679]
[1764419827478,0.0001655,90616.0,90615.0,0.04679]
[1764419828581,0.0113755,90616.0,90615.0,0.04679]
[1764419828776,0.0225855,90616.0,90615.0,0.04679]
[1764419829869,0.0113755,90616.0,90615.0,0.04879]
[1764419830076,0.0001655,90616.0,90615.0,0.04879]
[1764419830583,0.0001655,90616.0,90615.0,0.04779]
[1764419830980,0.38322,90629.0,90628.0,0.0568224]
[1764419831182,0.75322,90629.0,90628.0,0.04579]
[1764419832083,0.75322,90629.0,90628.0,0.0568224]
[1764419832284,0.75322,90629.0,90628.0,0.04579]
[1764419833085,0.75322,90629.0,90628.0,0.04679]
[1764419833681,0.75322,90629.0,90628.0,0.04579]
[1764419837680,0.02242,90620.0,90619.0,0.011199]
[1764419837982,0.02242,90620.0,90619.0,0.033999]
[1764419838181,0.02242,90620.0,90619.0,0.056989]
[1764419838983,0.02242,90620.0,90619.0,0.07190478]
[1764419839678,0.02242,90620.0,90619.0,0.07290478]
[1764419839880,0.0334524,90628.0,90627.0,0.04579]
[1764419840074,0.4134524,90628.0,90627.0,0.04579]
[1764419840678,0.43891658,90628.0,90627.0,0.04579]
[1764419842381,0.43991658,90628.0,90627.0,0.04579]
[1764419842784,0.43891658,90628.0,90627.0,0.04579]
[1764419844685,0.79971658,90628.0,90627.0,0.04579]
[1764419845483,0.79971658,90628.0,90627.0,0.05951]
[1764419847591,0.78868418,90628.0,90627.0,0.05951]
[1764419848984,0.38626418,90628.0,90627.0,0.06051]
[1764419849185,0.3608,90628.0,90627.0,0.06051]
[1764419849985,0.3608,90628.0,90627.0,0.05951]
[1764419851694,0.37201,90628.0,90627.0,0.06051]
[1764419851894,0.38322,90628.0,90627.0,0.06051]
[1764419852191,0.38322,90628.0,90627.0,0.06151]
[1764419858396,0.02242,90628.0,90627.0,0.06151]
[1764419866801,0.38242,90628.0,90627.0,0.06151]
[1764419867900,0.38242,90628.0,90627.0,0.05951]
[1764419868203,0.38242,90628.0,90627.0,0.06151]
[1764419868901,0.38242,90628.0,90627.0,0.002]
[1764419870301,0.38242,90628.0,90627.0,0.04651]
[1764419870692,0.40874477,90628.0,90627.0,0.04651]
[1764419870894,0.40974477,90628.0,90627.0,0.04451]
[1764419871293,0.41074477,90628.0,90627.0,0.04451]
[1764419871490,0.40974477,90628.0,90627.0,0.04551]
[1764419871999,0.40974477,90628.0,90627.0,0.04451]
[1764419872201,0.40874477,90628.0,90627.0,0.04451]
[1764419874296,0.40974477,90628.0,90627.0,0.04451]
[1764419875002,0.40874477,90628.0,90627.0,0.04451]
[1764419876801,0.40874477,90628.0,90627.0,0.04551]
[1764419877401,0.40874477,90628.0,90627.0,0.04451]
[1764419877596,0.04874477,90628.0,90627.0,0.04451]
[1764419877905,0.04875285,90628.0,90627.0,0.04451]
[1764419880705,0.02242,90628.0,90627.0,0.04451]
[1764419881694,0.0334515,90636.0,90635.0,0.04345]
[1764419881898,0.4697863,90636.0,90635.0,0.04345]
[1764419882905,0.4717863,90636.0,90635.0,0.04345]
[1764419883406,0.4697863,90636.0,90635.0,0.04345]
[1764419883803,0.4707863,90636.0,90635.0,0.04345]
[1764419884105,0.4597548,90636.0,90635.0,0.04345]
[1764419885602,0.0385448,90636.0,90635.0,0.04345]
[1764419885808,0.0497548,90636.0,90635.0,0.04345]
[1764419887709,0.0497548,90636.0,90635.0,0.05952858]
[1764419888503,0.02342,90636.0,90635.0,0.05952858]
[1764419890709,0.04956378,90636.0,90635.0,0.05952858]
[1764419892210,0.02714378,90636.0,90635.0,0.05952858]
[1764419892404,0.0001655,90638.0,90637.0,0.04345]
[1764419893505,0.0011655,90638.0,90637.0,0.41345]
[1764419893700,0.0021655,90638.0,90637.0,0.41345]
[1764419897016,0.0011655,90638.0,90637.0,0.41445]
[1764419898116,0.0001655,90638.0,90637.0,0.41945]
[1764419899421,0.0334491,90656.0,90655.0,0.04345]
[1764419899718,0.4634491,90656.0,90655.0,0.04345]
[1764419900519,0.8242491,90656.0,90655.0,0.04345]
[1764419901016,0.8242491,90656.0,90655.0,0.02144]
[1764419903320,0.8242491,90656.0,90655.0,0.04345]
[1764419904421,0.85029808,90656.0,90655.0,0.04345]
[1764419906520,0.85029808,90656.0,90655.0,0.05929494]
[1764419907218,0.85029808,90656.0,90655.0,0.01584494]
[1764419907414,0.0334497,90650.0,90649.0,0.0339998]
[1764419907614,0.38242,90650.0,90649.0,0.0549998]
[1764419908723,0.38242,90650.0,90649.0,0.0569998]
[1764419910216,0.38242,90650.0,90649.0,0.0559998]
[1764419911921,0.38242,90650.0,90649.0,0.07188399]
[1764419913916,0.38242,90650.0,90649.0,0.07088399]
[1764419914117,0.38242,90650.0,90649.0,0.07288399]
[1764419917828,0.38242,90650.0,90649.0,0.06185419]
[1764419918320,0.38242,90650.0,90649.0,0.05985419]
[1764419918526,0.38242,90650.0,90649.0,0.07188409]
[1764419920134,0.38242,90650.0,90649.0,0.06085419]
[1764419920435,0.38242,90650.0,90649.0,0.05985419]
[1764419920635,0.38242,90650.0,90649.0,0.06085419]
[1764419921129,0.40793315,90650.0,90649.0,0.06085419]
[1764419921637,0.40793315,90650.0,90649.0,0.05985419]
[1764419923636,0.41896285,90650.0,90649.0,0.05985419]
[1764419928139,0.40793315,90650.0,90649.0,0.05985419]
[1764419933552,0.40893315,90650.0,90649.0,0.05985419]
[1764419934046,0.40993315,90650.0,90649.0,0.05985419]
[1764419945457,0.40893315,90650.0,90649.0,0.05985419]
[1764419945657,0.40793315,90650.0,90649.0,0.06185419]
[1764419952162,0.40793315,90650.0,90649.0,0.06085419]
[1764419952564,0.40793315,90650.0,90649.0,0.05985419]
[1764419952769,0.40793315,90650.0,90649.0,0.06085419]
[1764419956174,0.76873315,90650.0,90649.0,0.01688419]
[1764419956770,0.76873315,90650.0,90649.0,0.03822419]
[1764419957070,0.76873315,90650.0,90649.0,0.06076419]
[1764419957773,0.76873315,90650.0,90649.0,0.05976419]
[1764419957973,0.76873315,90650.0,90649.0,0.06076419]
[1764419958776,0.76873315,90650.0,90649.0,0.05976419]
[1764419962078,0.40793315,90650.0,90649.0,0.05976419]
[1764419966584,0.40793827,90650.0,90649.0,0.05976419]
[1764419981907,0.12551827,90650.0,90649.0,0.05976419]
[1764419982106,0.14793827,90650.0,90649.0,0.05976419]
[1764419983411,0.14793827,90650.0,90649.0,0.06176419]
[1764419988318,0.04793827,90650.0,90649.0,0.48176419]
[1764419990824,0.02242,90650.0,90649.0,0.18176419]
[1764419991027,0.02242,90650.0,90649.0,0.06176419]
[1764419991913,0.42242,90650.0,90649.0,0.06176419]
[1764419992321,0.42242,90650.0,90649.0,0.05976419]
[1764419992525,0.42242,90650.0,90649.0,0.06176419]
[1764419992824,0.42242,90650.0,90649.0,0.03922419]
[1764419993019,0.42242,90650.0,90649.0,0.03822419]
[1764419993525,0.42242,90650.0,90649.0,0.06047419]
[1764419995618,0.42242,90650.0,90649.0,0.01588419]
[1764419995817,0.42242,90650.0,90646.0,0.0001655]
[1764419995818,0.02242,90647.0,90646.0,0.0001655]
[1764419996018,0.40242,90647.0,90646.0,0.0001655]
[1764419996222,0.42793873,90647.0,90646.0,0.0001655]
[1764419998231,0.42893873,90647.0,90646.0,0.0001655]
[1764419998520,0.4299309,90647.0,90646.0,0.0001655]
[1764419999417,0.4299309,90647.0,90646.0,0.0111957]
[1764419999624,0.4299309,90647.0,90646.0,0.0001655]
[1764420000413,0.4299309,90647.0,90646.0,0.01507523]
[1764420000618,0.4299309,90647.0,90646.0,0.0001655]
[1764420003222,0.4299309,90647.0,90646.0,0.0111957]
[1764420003426,0.4279309,90647.0,90646.0,0.0111957]
[1764420004126,0.4279309,90647.0,90646.0,0.0001655]
[1764420005331,0.4279309,90647.0,90646.0,0.01508114]
[1764420005526,0.4289309,90647.0,90646.0,0.01508114]
[1764420006131,0.4299309,90647.0,90646.0,0.01508114]
[1764420006633,0.7907309,90647.0,90646.0,0.01508114]
[1764420008426,0.4289309,90647.0,90646.0,0.01508114]
[1764420008632,0.7897309,90647.0,90646.0,0.01508114]
[1764420013233,0.4289309,90647.0,90646.0,0.01508114]
[1764420013531,0.7897309,90647.0,90646.0,0.01508114]
[1764420016935,0.4289309,90647.0,90646.0,0.01508114]
[1764420017135,0.7897309,90647.0,90646.0,0.01508114]
[1764420019638,0.7897309,90647.0,90646.0,0.02611134]
[1764420019836,0.76422,90647.0,90646.0,0.04787134]
[1764420020137,0.79048974,90647.0,90646.0,0.07042134]
[1764420023525,0.79048974,90647.0,90646.0,0.03684114]
[1764420023734,0.79048974,90647.0,90646.0,0.01508114]
[1764420023932,0.79048974,90647.0,90646.0,0.03721114]
[1764420026238,0.79048974,90647.0,90646.0,0.05990114]
[1764420027933,0.79052193,90647.0,90646.0,0.05990114]
[1764420032347,0.42972193,90647.0,90646.0,0.05990114]
[1764420032539,0.79052193,90647.0,90646.0,0.05990114]
[1764420034445,0.79052193,90647.0,90646.0,0.07093134]
[1764420034849,0.79052193,90647.0,90646.0,0.05990114]
[1764420038451,0.79052193,90647.0,90646.0,0.03721114]
[1764420039350,0.79052193,90647.0,90646.0,0.05874114]
[1764420044358,0.79052193,90647.0,90646.0,0.07194114]
[1764420047253,0.77931193,90647.0,90646.0,0.07194114]
[1764420047551,0.76810193,90647.0,90646.0,0.07194114]
[1764420047855,0.81931193,90647.0,90646.0,0.07194114]
[1764420048056,0.83052193,90647.0,90646.0,0.07194114]
[1764420051559,0.38810193,90647.0,90646.0,0.07194114]
[1764420051854,0.001,90647.0,90646.0,0.46194114]
[1764420052261,0.38322,90658.0,90657.0,0.0575]
[1764420052453,0.78955368,90658.0,90657.0,0.0575]
[1764420053360,0.79055368,90658.0,90657.0,0.0575]
[1764420053765,0.79155368,90658.0,90657.0,0.0575]
[1764420054654,0.002,90658.0,90657.0,0.0575]
[1764420055868,0.0113755,90665.0,90664.0,0.0443]
[1764420056058,0.0213755,90665.0,90664.0,0.0443]
[1764420057163,0.0233755,90665.0,90664.0,0.055328]
[1764420058067,0.0345855,90665.0,90664.0,0.055328]
[1764420058563,0.0355855,90665.0,90664.0,0.055328]
[1764420063364,0.3955855,90665.0,90664.0,0.0443]
[1764420066165,0.0031655,90665.0,90664.0,0.0443]
[1764420066354,0.0143755,90665.0,90664.0,0.3943]
[1764420066557,0.0031655,90665.0,90664.0,0.3943]
[1764420067769,0.0143755,90665.0,90664.0,0.1543]
[1764420069369,0.0255855,90665.0,90664.0,0.1543]
[1764420069569,0.0143755,90665.0,90664.0,0.1543]
[1764420070674,0.0255855,90665.0,90664.0,0.0443]
[1764420080974,0.0143755,90665.0,90664.0,0.0443]
[1764420081175,0.0031655,90665.0,90664.0,0.0443]
[1764420083877,0.0031655,90665.0,90664.0,0.0259442]
[1764420085681,0.0241855,90665.0,90664.0,0.0259442]
[1764420089380,0.0460755,90665.0,90664.0,0.0259442]
[1764420095578,0.0460755,90665.0,90664.0,0.3994142]
[1764420097882,0.0460755,90665.0,90664.0,0.0386142]
[1764420101588,0.0460755,90665.0,90664.0,0.0044142]
[1764420101589,0.4060755,90665.0,90664.0,0.0044142]
[1764420101783,0.43173478,90665.0,90664.0,0.0044142]
[1764420103285,0.43173478,90665.0,90664.0,0.0258542]
[1764420110800,0.4060755,90665.0,90664.0,0.0258542]
[1764420114310,0.4171034,90665.0,90664.0,0.0258542]
[1764420114815,0.0110284,90661.0,90660.0,0.04443]
[1764420115004,0.4157284,90661.0,90660.0,0.04443]
[1764420116003,0.4047,90661.0,90660.0,0.0554585]
[1764420116409,0.4057,90661.0,90660.0,0.0554585]
[1764420116626,0.4067,90661.0,90660.0,0.04443]
[1764420122616,0.40168964,90661.0,90660.0,0.04443]
[1764420125612,0.40168964,90661.0,90660.0,0.0554585]
[1764420127112,0.40168964,90661.0,90660.0,0.04443]
[1764420127514,0.04551,90658.0,90657.0,0.01377921]
[1764420127705,0.04551,90647.0,90646.0,0.0596655]
[1764420128015,0.45551,90647.0,90646.0,0.0596655]
[1764420128215,0.4665401,90647.0,90646.0,0.0596655]
[1764420128604,0.4665401,90647.0,90646.0,0.0001655]
[1764420128809,0.49234365,90647.0,90646.0,0.0001655]
[1764420129315,0.49234365,90647.0,90646.0,0.0021655]
[1764420130118,0.4665401,90647.0,90646.0,0.0021655]
[1764420130414,0.4665401,90647.0,90646.0,0.01517671]
[1764420130919,0.4675401,90647.0,90646.0,0.01517671]
[1764420131411,0.4685401,90647.0,90646.0,0.01317671]
[1764420131611,0.4675401,90647.0,90646.0,0.01317671]
[1764420132412,0.4685401,90647.0,90646.0,0.01317671]
[1764420132613,0.4675401,90647.0,90646.0,0.01317671]
[1764420132817,0.4685401,90647.0,90646.0,0.01317671]
[1764420133817,0.4675401,90647.0,90646.0,0.01317671]
[1764420134018,0.4685401,90647.0,90646.0,0.01317671]
[1764420134519,0.4675401,90647.0,90646.0,0.01317671]
[1764420134822,0.4685401,90647.0,90646.0,0.01317671]
[1764420135531,0.8293401,90647.0,90646.0,0.01317671]
[1764420136424,0.8283401,90647.0,90646.0,0.01317671]
[1764420136612,0.8283401,90647.0,90646.0,0.02420691]
[1764420136811,0.8273401,90647.0,90646.0,0.02420691]
[1764420137014,0.8273401,90647.0,90646.0,0.01317671]
[1764420140218,0.8283401,90647.0,90646.0,0.01317671]
[1764420141714,0.8273401,90647.0,90646.0,0.01317671]
[1764420144618,0.8283401,90647.0,90646.0,0.01317671]
[1764420146620,0.4675401,90647.0,90646.0,0.01317671]
[1764420146817,0.8283401,90647.0,90646.0,0.01317671]
[1764420148228,0.8283401,90647.0,90646.0,0.05599671]
[1764420150737,0.8273401,90647.0,90646.0,0.05599671]
[1764420151029,0.8273401,90647.0,90646.0,0.05699671]
[1764420152520,0.81631,90647.0,90646.0,0.05699671]
[1764420154125,0.81631,90647.0,90646.0,0.05599671]
[1764420155232,0.81631,90647.0,90646.0,0.05699671]
[1764420155633,0.81631,90647.0,90646.0,0.05599671]
[1764420158133,0.84204319,90647.0,90646.0,0.05599671]
[1764420158929,0.48124319,90647.0,90646.0,0.05599671]
[1764420164032,0.48124319,90647.0,90646.0,0.05699671]
[1764420164444,0.48124319,90647.0,90646.0,0.05599671]
[1764420164746,0.4043,90658.0,90657.0,0.05796]
[1764420164935,0.81003713,90658.0,90657.0,0.05796]
[1764420166943,0.81103713,90658.0,90657.0,0.05796]
[1764420169245,0.81103713,90658.0,90657.0,0.04427]
[1764420169648,0.81103713,90658.0,90657.0,0.05698437]
[1764420173038,0.81103713,90658.0,90657.0,0.01271437]
[1764420173239,0.0435,90656.0,90655.0,0.011029]
[1764420173436,0.49923713,90656.0,90655.0,0.011029]
[1764420174739,0.49923713,90656.0,90655.0,0.0238183]
[1764420179646,0.49923713,90656.0,90655.0,0.0127893]
[1764420179944,0.04275,90653.0,90652.0,0.0562395]
[1764420180247,0.84928713,90653.0,90652.0,0.0562395]
[1764420181549,0.04275,90650.0,90649.0,0.0110298]
[1764420181749,0.43275,90650.0,90649.0,0.0110298]
[1764420182345,0.43275,90650.0,90649.0,0.0341398]
[1764420182849,0.43275,90650.0,90649.0,0.0572398]
[1764420183555,0.43275,90650.0,90649.0,0.0562398]
[1764420184750,0.43275,90650.0,90649.0,0.06893462]
[1764420184946,0.10275,90650.0,90649.0,0.06893462]
[1764420185137,0.45275,90650.0,90649.0,0.06893462]
[1764420186658,0.45275,90650.0,90649.0,0.05790482]
[1764420189353,0.45275,90650.0,90649.0,0.06993472]
[1764420189944,0.45275,90650.0,90649.0,0.06893472]
[1764420191454,0.45275,90650.0,90649.0,0.06993472]
[1764420192055,0.45275,90650.0,90649.0,0.06893472]
[1764420194760,0.04275,90650.0,90649.0,0.06893472]
[1764420199162,0.04275,90650.0,90649.0,0.07093472]
[1764420201663,0.4046,90659.0,90658.0,0.0534888]
[1764420201973,0.05184,90659.0,90658.0,0.0534888]
[1764420202667,0.05284,90659.0,90658.0,0.0534888]
[1764420202869,0.05384,90659.0,90658.0,0.0534888]
[1764420203572,0.032,90659.0,90658.0,0.0534888]
[1764420204077,0.05384,90659.0,90658.0,0.0534888]
[1764420204876,0.02384,90659.0,90658.0,0.0534888]
[1764420205077,0.002,90659.0,90658.0,0.0534888]
[1764420206571,0.02384,90659.0,90658.0,0.0534888]
[1764420206877,0.002,90659.0,90658.0,0.0534888]
[1764420207673,0.002,90659.0,90658.0,0.4834888]
[1764420214481,0.002,90659.0,90658.0,0.8442888]
[1764420220880,0.002,90659.0,90658.0,1.0178888]
[1764420222890,0.002,90659.0,90658.0,0.6570888]
[1764420223187,0.002,90659.0,90658.0,1.0178888]
[1764420224688,0.002,90659.0,90658.0,0.5878888]
[1764420228488,0.002,90659.0,90658.0,0.6010088]
[1764420229292,0.0001655,90665.0,90664.0,0.068268]
[1764420230589,0.0001655,90665.0,90664.0,0.070268]
[1764420234792,0.40427,90676.0,90675.0,0.0682667]
[1764420234991,0.42976667,90676.0,90675.0,0.2418667]
[1764420241201,0.38629667,90676.0,90674.0,0.0110267]
[1764420241503,0.04559,90672.0,90671.0,0.0110272]
[1764420242092,0.05527,90672.0,90671.0,0.0110272]
[1764420242596,0.05527,90672.0,90671.0,0.0120272]
[1764420244603,0.04559,90672.0,90671.0,0.0120272]
[1764420249810,0.04559,90672.0,90671.0,0.0352372]
[1764420251309,0.04559,90672.0,90671.0,0.0342372]
[1764420251510,0.04559,90672.0,90671.0,0.0352372]
[1764420251703,0.04559,90672.0,90671.0,0.0583572]
[1764420251903,0.04559,90672.0,90671.0,0.0573572]
[1764420252099,0.04559,90672.0,90671.0,0.0583572]
[1764420255910,0.40639,90678.0,90677.0,0.0573564]
[1764420256215,0.43172875,90678.0,90677.0,0.0573564]
[1764420257219,0.43272875,90678.0,90677.0,0.0573564]
[1764420261118,0.43272875,90678.0,90677.0,0.06955083]
[1764420265025,0.07192875,90678.0,90677.0,0.06955083]
[1764420271818,0.04659,90678.0,90677.0,0.06955083]
[1764420272533,0.0718041,90678.0,90677.0,0.06955083]
[1764420284838,0.4618041,90678.0,90677.0,0.06955083]
[1764420294545,0.4618041,90678.0,90677.0,0.05852443]
[1764420310860,0.4617961,90678.0,90677.0,0.05852443]
[1764420326773,0.46179615,90678.0,90677.0,0.05852443]
[1764420337878,0.29179615,90678.0,90677.0,0.05852443]
[1764420375095,0.30173615,90678.0,90677.0,0.01219443]
[1764420375296,0.04442,90671.0,90670.0,0.4305773]
[1764420377398,0.04442,90671.0,90670.0,0.4315773]
[1764420380104,0.04442,90671.0,90670.0,0.44366983]
[1764420382215,0.02303,90671.0,90670.0,0.44366983]
[1764420384905,0.02303,90671.0,90670.0,0.08286983]
[1764420385110,0.02303,90671.0,90670.0,0.44366983]
[1764420386018,0.04495,90671.0,90670.0,0.44366983]
[1764420391225,0.06988351,90671.0,90670.0,0.44366983]
[1764420391521,0.04796351,90671.0,90670.0,0.44366983]
[1764420392725,0.04806836,90671.0,90670.0,0.44366983]
[1764420394426,0.02503836,90671.0,90670.0,0.44366983]
[1764420399328,0.13009685,90680.0,90679.0,0.0110262]
[1764420399528,0.13009685,90680.0,90679.0,0.0555662]
[1764420399529,0.48779801,90680.0,90679.0,0.0555662]
[1764420399938,0.45497801,90680.0,90673.0,0.32130331]
[1764420400235,0.04276,90674.0,90673.0,0.34436331]
[1764420400425,0.06779801,90674.0,90673.0,0.34436331]
[1764420401030,0.04276,90674.0,90673.0,0.34436331]
[1764420401226,0.40276,90674.0,90673.0,0.28879641]
[1764420401432,0.04276,90671.0,90670.0,0.01209253]
[1764420401733,0.49758008,90671.0,90670.0,0.04454]
[1764420402735,0.49758008,90671.0,90670.0,0.04554]
[1764420403030,0.49758008,90671.0,90670.0,0.02248]
[1764420404038,0.49758008,90671.0,90670.0,0.02148]
[1764420404333,0.49758008,90671.0,90670.0,0.02248]
[1764420404727,0.49758008,90671.0,90670.0,0.02148]
[1764420404921,0.0110273,90670.0,90667.0,0.0110276]
[1764420405128,0.0537877,90667.0,90666.0,0.01173376]
[1764420405330,0.4637877,90667.0,90666.0,0.01173376]
[1764420405832,0.45276,90667.0,90666.0,0.01173376]
[1764420406027,0.45276,90667.0,90666.0,0.03321376]
[1764420406229,0.45276,90667.0,90666.0,0.05627376]
[1764420407437,0.45276,90667.0,90666.0,0.05727376]
[1764420407936,0.45376,90667.0,90666.0,0.05627376]
[1764420410327,0.45276,90667.0,90666.0,0.05627376]
[1764420413730,0.45276,90667.0,90666.0,0.06993376]
[1764420415242,0.45276,90667.0,90666.0,0.07093376]
[1764420426240,0.07101,90667.0,90666.0,0.07093376]
[1764420430559,0.40507,90673.0,90672.0,0.05829]
[1764420430748,0.85049999,90673.0,90672.0,0.05829]
[1764420431257,0.85049999,90673.0,90672.0,0.0693171]
[1764420432153,0.85149999,90673.0,90672.0,0.0693171]
[1764420436357,0.49069999,90673.0,90672.0,0.0693171]
[1764420438958,0.02237,90673.0,90672.0,0.0693171]
[1764420439157,0.001,90673.0,90672.0,0.0693171]
[1764420440255,0.02364,90673.0,90672.0,0.0693171]
[1764420440656,0.001,90673.0,90672.0,0.4301171]
[1764420442953,0.001,90673.0,90672.0,0.8301171]
[1764420443161,0.0446655,90685.0,90684.0,0.0707956]
[1764420443366,0.48007594,90685.0,90684.0,0.0707956]
[1764420444268,0.48407594,90685.0,90684.0,0.0707956]
[1764420444456,0.48507594,90685.0,90684.0,0.0707956]
[1764420447457,0.4596655,90685.0,90684.0,0.0707956]
[1764420448866,0.4850597,90685.0,90684.0,0.0707956]
[1764420450363,0.0051655,90685.0,90684.0,0.5007956]
[1764420450960,0.3608,90698.0,90697.0,0.032714]
[1764420451159,0.43018977,90698.0,90697.0,0.055654]
[1764420451364,0.57018977,90698.0,90697.0,0.055654]
[1764420451663,0.184,90698.0,90697.0,0.055654]
[1764420452059,0.049,90698.0,90697.0,0.055654]
[1764420452259,0.439,90698.0,90697.0,0.055654]
[1764420452564,0.3608,90715.0,90697.0,0.055654]
[1764420452565,0.05747556,90726.0,90725.0,0.04463]
[1764420452769,0.08747556,90726.0,90725.0,0.04463]
[1764420452970,0.04427556,90726.0,90725.0,0.40543]
[1764420453872,0.04527556,90726.0,90725.0,0.40543]
[1764420454662,0.04427556,90726.0,90725.0,0.40543]
[1764420455266,0.04427556,90726.0,90725.0,0.57659]
[1764420460971,0.04427556,90726.0,90725.0,0.41720044]
[1764420461171,0.04427556,90726.0,90725.0,0.59076044]
[1764420464973,0.04427556,90726.0,90725.0,0.41720044]
[1764420465173,0.04427556,90726.0,90725.0,0.59072044]
[1764420468572,0.05747556,90726.0,90725.0,0.39426044]
[1764420468779,0.05747556,90726.0,90725.0,0.03346044]
[1764420469584,0.05747556,90726.0,90725.0,0.05640044]
[1764420475088,0.47747556,90726.0,90725.0,0.05640044]
[1764420476989,0.05747556,90726.0,90725.0,0.05640044]
[1764420478888,0.04442556,90726.0,90725.0,0.05640044]
[1764420479085,0.05708556,90726.0,90725.0,0.05640044]
[1764420482292,0.08219192,90726.0,90725.0,0.05640044]
[1764420490697,0.08219192,90726.0,90725.0,0.41720044]
[1764420495202,0.06953192,90726.0,90725.0,0.41720044]
[1764420496299,0.02538192,90726.0,90725.0,0.79720044]
[1764420496495,0.00027556,90726.0,90725.0,0.79720044]
[1764420498497,0.04442556,90726.0,90725.0,0.50720044]
[1764420501197,0.00027556,90726.0,90725.0,0.76720044]
[1764420501391,0.02169556,90726.0,90725.0,0.76720044]
[1764420502195,0.05708556,90726.0,90725.0,0.44720044]
[1764420502503,0.05708556,90726.0,90725.0,0.59068044]
[1764420503299,0.05708556,90726.0,90725.0,0.41720044]
[1764420503500,0.05708556,90726.0,90725.0,0.59068044]
[1764420509098,0.05708556,90726.0,90725.0,0.41720044]
[1764420509303,0.05708556,90726.0,90725.0,0.54605044]
[1764420509711,0.05708556,90726.0,90725.0,0.56753044]
[1764420510110,0.05708556,90726.0,90725.0,0.58935044]
[1764420512010,0.01739556,90726.0,90725.0,0.58935044]
[1764420512215,0.02630556,90726.0,90725.0,0.58935044]
[1764420512916,0.43630556,90726.0,90725.0,0.58935044]
[1764420514025,0.43630556,90726.0,90725.0,0.41587044]
[1764420515022,0.44510556,90726.0,90725.0,0.41587044]
[1764420515922,0.43630556,90726.0,90725.0,0.41587044]
[1764420516227,0.43630556,90726.0,90725.0,0.05507044]
[1764420518128,0.43942394,90726.0,90725.0,0.05507044]
[1764420521328,0.43942394,90726.0,90725.0,0.03325044]
[1764420521533,0.4644805,90726.0,90725.0,0.01177044]
[1764420521736,0.04281,90718.0,90717.0,0.41698]
[1764420522029,0.4738315,90718.0,90717.0,0.41698]
[1764420522935,0.4738315,90718.0,90717.0,0.42298]
[1764420524034,0.4341363,90718.0,90717.0,0.43462664]
[1764420524627,0.0141363,90718.0,90717.0,0.43462664]
[1764420526534,0.0141363,90718.0,90717.0,0.07382664]
[1764420528233,0.0031148,90718.0,90717.0,0.07382664]
[1764420541246,0.011021,90722.0,90721.0,0.04311]
[1764420541632,0.03607451,90722.0,90721.0,0.04311]
[1764420542545,0.03607451,90722.0,90721.0,0.04811]
[1764420542741,0.02505351,90722.0,90721.0,0.04811]
[1764420552849,0.02505351,90722.0,90717.0,0.02452664]
[1764420552850,0.0110215,90718.0,90717.0,0.06763664]
[1764420553047,0.39607501,90718.0,90717.0,0.06763664]
[1764420553251,0.03607501,90718.0,90717.0,0.06763664]
[1764420554252,0.03607501,90718.0,90717.0,0.07163664]
[1764420554651,0.03607501,90718.0,90717.0,0.06763664]
[1764420554852,0.03607501,90718.0,90717.0,0.07263664]
[1764420555555,0.03707501,90718.0,90717.0,0.07263664]
[1764420556358,0.03607501,90718.0,90717.0,0.07263664]
[1764420557755,0.03607501,90718.0,90717.0,0.06763664]
[1764420557956,0.03607501,90718.0,90717.0,0.06963664]
[1764420568773,0.03607501,90718.0,90717.0,0.06763664]
[1764420568967,0.03607501,90718.0,90717.0,0.06963664]
[1764420569167,0.03707501,90718.0,90717.0,0.06963664]
[1764420584580,0.39787501,90718.0,90717.0,0.06963664]
[1764420584780,0.76787501,90718.0,90717.0,0.06963664]